bitfinex/quotes_BTCUSD_20241111
["timestamp","ask_amount","ask_price","bid_price","bid_amount"]
[1731330708408,1.01775914,81717.0,81716.0,0.2019328]
[1731330708621,1.01975914,81717.0,81716.0,0.2019328]
[1731330709294,1.01275914,81717.0,81716.0,0.2019328]
[1731330709707,0.83036046,81717.0,81716.0,0.2019328]
[1731330709920,0.83036046,81717.0,81716.0,0.2027778]
[1731330710148,0.83036046,81717.0,81716.0,0.17981541]
[1731330711443,0.82036046,81717.0,81716.0,0.17981541]
[1731330712118,0.82036046,81717.0,81691.0,0.244994]
[1731330712119,0.382411,81692.0,81691.0,0.244994]
[1731330712325,0.76982158,81692.0,81691.0,0.22989495]
[1731330712532,0.76482158,81692.0,81691.0,0.00439518]
[1731330712758,0.127418,81687.0,81686.0,0.00023035]
[1731330713174,0.25336021,81687.0,81686.0,0.00023035]
[1731330713387,0.13094221,81687.0,81684.0,0.0176065]
[1731330713597,0.12594221,81686.0,81684.0,0.0176065]
[1731330713804,0.005,81685.0,81684.0,0.0176065]
[1731330714026,0.13094221,81685.0,81684.0,0.0176065]
[1731330715708,0.12594221,81685.0,81684.0,0.0406065]
[1731330715969,0.12594221,81685.0,81684.0,0.0176065]
[1731330716177,0.13094221,81685.0,81684.0,0.0176065]
[1731330716845,0.25336321,81685.0,81684.0,0.02184313]
[1731330717071,0.34853898,81685.0,81684.0,0.0176065]
[1731330717277,0.25536321,81685.0,81684.0,0.0176065]
[1731330717715,0.25336321,81685.0,81684.0,0.0176065]
[1731330718367,0.12594221,81685.0,81684.0,0.0176065]
[1731330718575,0.12594221,81685.0,81684.0,0.1400285]
[1731330718788,0.13094221,81685.0,81684.0,0.0218428]
[1731330719254,0.13094221,81685.0,81684.0,0.0176065]
[1731330719459,0.13094221,81685.0,81683.0,0.21598434]
[1731330719689,0.12594221,81684.0,81683.0,0.21598434]
[1731330720306,0.12594221,81684.0,81683.0,0.34272511]
[1731330720522,0.25,81689.0,81688.0,0.122417]
[1731330720755,0.25,81689.0,81684.0,0.183633]
[1731330720756,0.25,81701.0,81700.0,0.122399]
[1731330720969,1.5,81713.0,81684.0,0.005]
[1731330720970,0.18356146,81706.0,81690.0,0.005]
[1731330721180,0.18356146,81706.0,81684.0,0.09938467]
[1731330721390,0.005,81705.0,81685.0,0.03202472]
[1731330721676,0.18356146,81706.0,81705.0,0.122391]
[1731330722087,0.30950367,81706.0,81705.0,0.12686535]
[1731330722298,0.30950367,81706.0,81705.0,0.00447435]
[1731330722506,0.13094221,81706.0,81705.0,0.00447435]
[1731330722688,0.12594221,81706.0,81705.0,0.122391]
[1731330722943,0.12594221,81706.0,81705.0,0.1713486]
[1731330723156,0.006696,81717.0,81705.0,0.05292922]
[1731330723369,0.006696,81717.0,81705.0,0.00397162]
[1731330723786,0.006696,81717.0,81687.0,0.023]
[1731330724001,0.005,81707.0,81687.0,0.183627]
[1731330724242,0.005,81707.0,81703.0,0.122393]
[1731330724457,0.30950367,81706.0,81700.0,0.183596]
[1731330724684,0.005,81709.0,81704.0,0.00391926]
[1731330724888,0.005,81716.0,81702.0,0.183592]
[1731330725105,1.5,81715.0,81705.0,0.00391953]
[1731330725309,1.68356146,81715.0,81714.0,0.122378]
[1731330725531,0.001696,81717.0,81716.0,0.122375]
[1731330725950,0.001696,81717.0,81716.0,0.12628237]
[1731330727029,0.001696,81717.0,81716.0,0.12872959]
[1731330727262,0.001696,81717.0,81716.0,0.22628237]
[1731330727465,0.001696,81717.0,81716.0,0.24928237]
[1731330727668,0.001696,81717.0,81716.0,0.43686632]
[1731330728100,0.001696,81717.0,81716.0,0.28792411]
[1731330728524,0.001696,81717.0,81716.0,0.22628237]
[1731330730053,0.001696,81717.0,81716.0,0.37522458]
[1731330732053,0.001696,81717.0,81716.0,0.22628237]
[1731330732304,0.03107101,81717.0,81716.0,0.22628237]
[1731330732933,0.001696,81717.0,81716.0,0.22628237]
[1731330733138,0.001696,81717.0,81716.0,0.28562411]
[1731330733983,0.001696,81717.0,81716.0,0.43456632]
[1731330734443,0.18356146,81744.0,81743.0,0.122334]
[1731330734693,0.18356146,81744.0,81741.0,0.15297607]
[1731330734694,0.19485165,81744.0,81741.0,0.15297607]
[1731330734927,1.69485165,81744.0,81743.0,0.00378509]
[1731330735140,1.51129132,81744.0,81719.0,0.123]
[1731330735352,0.01129132,81743.0,81736.0,0.122343]
[1731330735584,0.01129132,81743.0,81730.0,0.183531]
[1731330735585,0.01129132,81742.0,81730.0,0.183531]
[1731330735813,0.01129132,81741.0,81721.0,0.1]
[1731330736019,0.01129132,81740.0,81732.0,0.183526]
[1731330736267,1.5,81744.0,81723.0,0.245364]
[1731330736491,0.19484381,81743.0,81733.0,0.00339234]
[1731330736721,0.18356146,81743.0,81742.0,0.11507502]
[1731330736951,0.22116742,81743.0,81742.0,0.11507502]
[1731330737156,0.03760596,81743.0,81742.0,0.11845442]
[1731330737795,0.03760596,81743.0,81742.0,0.16700146]
[1731330738223,0.03760596,81743.0,81742.0,0.11845442]
[1731330738652,0.03760596,81743.0,81742.0,0.11507502]
[1731330738914,0.03760596,81743.0,81742.0,0.1184319]
[1731330739114,0.03760596,81743.0,81742.0,0.11507502]
[1731330739288,0.03760596,81743.0,81742.0,0.11843117]
[1731330739831,0.03760596,81743.0,81742.0,0.16697649]
[1731330740447,1.53760596,81743.0,81742.0,0.16697649]
[1731330740655,1.53760596,81743.0,81742.0,0.11843117]
[1731330740924,0.005,81755.0,81749.0,0.183487]
[1731330741130,0.28534458,81757.0,81749.0,0.183487]
[1731330741131,0.005,81751.0,81750.0,0.122323]
[1731330741349,0.04257513,81751.0,81750.0,0.12568021]
[1731330741558,0.03757513,81751.0,81750.0,0.12568021]
[1731330741768,1.53757513,81751.0,81750.0,0.17494673]
[1731330742008,1.57291971,81751.0,81750.0,0.00335721]
[1731330742290,1.57291971,81751.0,81750.0,0.12568121]
[1731330742529,1.53757513,81751.0,81750.0,0.122324]
[1731330742767,1.66864666,81751.0,81749.0,0.122325]
[1731330743010,0.09084633,81750.0,81736.0,0.183517]
[1731330743215,0.03757513,81749.0,81742.0,0.18356146]
[1731330743433,1.53551856,81751.0,81737.0,0.03670785]
[1731330743656,0.03551856,81743.0,81742.0,0.122336]
[1731330743904,0.0532712,81745.0,81742.0,0.03425539]
[1731330744107,0.0532712,81745.0,81744.0,0.122333]
[1731330744329,0.0532712,81745.0,81742.0,0.000843]
[1731330744549,0.18356146,81750.0,81744.0,0.00159949]
[1731330744550,0.12233,81746.0,81744.0,0.00159949]
[1731330744780,0.13185372,81745.0,81742.0,0.000843]
[1731330744986,0.377334,81743.0,81742.0,0.000843]
[1731330745238,0.244704,81732.0,81725.0,0.18356146]
[1731330745441,0.122355,81729.0,81726.0,0.02147252]
[1731330745672,0.13185372,81728.0,81727.0,0.159066]
[1731330745916,0.13185372,81728.0,81727.0,0.122358]
[1731330747405,0.23991973,81728.0,81727.0,0.122358]
[1731330747669,0.31804544,81728.0,81727.0,0.122358]
[1731330747878,0.31804544,81728.0,81727.0,0.17217183]
[1731330748096,0.31804544,81728.0,81727.0,0.122358]
[1731330750540,1.81804544,81728.0,81727.0,0.122358]
[1731330750785,0.31804544,81728.0,81727.0,0.122358]
[1731330751036,0.31804544,81728.0,81727.0,0.12556992]
[1731330751249,0.31804544,81728.0,81727.0,0.44815595]
[1731330751474,0.13185372,81728.0,81727.0,0.44815595]
[1731330751691,0.13185372,81728.0,81727.0,0.67815595]
[1731330751915,0.13185372,81728.0,81727.0,0.52921374]
[1731330753777,0.13185372,81728.0,81727.0,0.67815595]
[1731330754420,0.22214599,81728.0,81727.0,0.67815595]
[1731330754633,0.13185372,81728.0,81727.0,0.67815595]
[1731330755293,0.13185372,81728.0,81727.0,0.68154682]
[1731330755510,0.13185372,81728.0,81727.0,0.68238982]
[1731330755722,0.13353972,81728.0,81727.0,0.68238982]
[1731330755941,0.10830293,81739.0,81738.0,0.005]
[1731330756168,0.10830293,81744.0,81741.0,0.17127]
[1731330756387,0.10830293,81748.0,81743.0,0.171266]
[1731330756607,0.18356146,81766.0,81746.0,0.14533]
[1731330756608,0.03779558,81747.0,81746.0,0.14533]
[1731330756811,0.10830293,81753.0,81751.0,0.023]
[1731330757024,0.10830293,81754.0,81753.0,0.122319]
[1731330757248,0.14611188,81754.0,81753.0,0.12559057]
[1731330757485,0.22450362,81754.0,81753.0,0.17240073]
[1731330757701,0.33287101,81754.0,81753.0,0.17240073]
[1731330758146,0.28787101,81754.0,81753.0,0.17240073]
[1731330758560,1.5,81756.0,81755.0,0.122316]
[1731330758761,1.53781686,81756.0,81755.0,0.14831063]
[1731330758969,1.53781686,81756.0,81755.0,0.15155588]
[1731330759196,1.79107407,81756.0,81755.0,0.00324525]
[1731330759399,1.66375907,81756.0,81745.0,0.18356146]
[1731330759594,0.10837981,81754.0,81751.0,0.122322]
[1731330759805,0.10840701,81753.0,81746.0,0.02188048]
[1731330760053,0.10840701,81753.0,81752.0,0.122321]
[1731330760256,0.03783762,81753.0,81752.0,0.122321]
[1731330760465,0.14625067,81753.0,81752.0,0.15386665]
[1731330760638,0.07229282,81754.0,81747.0,0.17126]
[1731330760875,0.0542193,81750.0,81749.0,0.122325]
[1731330761084,0.03615292,81752.0,81751.0,0.122322]
[1731330761346,1.53615292,81756.0,81751.0,0.06899083]
[1731330761552,0.30585546,81770.0,81751.0,0.06899083]
[1731330761553,0.0542193,81763.0,81757.0,0.023]
[1731330761786,0.18356146,81769.0,81757.0,0.023]
[1731330762032,1.5,81768.0,81767.0,0.122298]
[1731330762231,1.5,81768.0,81767.0,0.14417848]
[1731330762722,1.5,81768.0,81767.0,0.122298]
[1731330762930,1.5,81768.0,81761.0,0.171229]
[1731330762931,1.5,81768.0,81754.0,0.122318]
[1731330763137,0.0361709,81765.0,81761.0,0.171229]
[1731330763336,0.0361709,81765.0,81759.0,0.18356146]
[1731330763510,1.5,81768.0,81762.0,0.171227]
[1731330763754,1.5,81768.0,81753.0,0.271245]
[1731330763755,0.0542193,81765.0,81755.0,0.1]
[1731330763958,0.03617802,81760.0,81758.0,0.171237]
[1731330764130,0.03617802,81760.0,81759.0,0.12231]
[1731330764360,1.57229342,81768.0,81758.0,0.342474]
[1731330764361,0.03618009,81761.0,81760.0,0.122309]
[1731330764513,0.0542193,81763.0,81757.0,0.105]
[1731330764720,0.122303,81764.0,81749.0,0.00334988]
[1731330764924,0.05428279,81758.0,81749.0,0.00334988]
[1731330765141,0.05428279,81758.0,81757.0,0.122313]
[1731330765343,0.07229342,81761.0,81758.0,0.122311]
[1731330765527,0.07229342,81759.0,81758.0,0.122311]
[1731330765717,0.09036602,81761.0,81758.0,0.122311]
[1731330765913,0.21267402,81761.0,81755.0,0.159011]
[1731330766151,0.07239919,81757.0,81749.0,0.159022]
[1731330766376,0.07239919,81757.0,81756.0,0.122315]
[1731330766557,0.07239919,81757.0,81753.0,0.159015]
[1731330766773,0.07237434,81757.0,81756.0,0.122314]
[1731330767091,0.001686,81758.0,81757.0,0.159007]
[1731330767224,0.001686,81758.0,81757.0,0.19448985]
[1731330767870,0.001686,81758.0,81746.0,0.1]
[1731330768075,0.001686,81758.0,81716.0,0.159085]
[1731330768076,0.07242145,81748.0,81747.0,0.122328]
[1731330768245,0.09052682,81751.0,81747.0,0.122328]
[1731330768449,0.09052682,81748.0,81747.0,0.122328]
[1731330768719,0.09052682,81748.0,81746.0,0.12233]
[1731330768875,0.09052682,81748.0,81744.0,0.18356146]
[1731330769060,0.09052682,81748.0,81747.0,0.122328]
[1731330769259,0.09052682,81752.0,81751.0,0.122322]
[1731330769684,0.001686,81758.0,81755.0,0.122315]
[1731330769889,0.001686,81758.0,81743.0,0.023]
[1731330770093,0.07245708,81747.0,81746.0,0.12233]
[1731330770307,0.001686,81758.0,81747.0,0.122328]
[1731330770308,0.07245708,81748.0,81747.0,0.122328]
[1731330770888,0.13549186,81758.0,81757.0,0.122313]
[1731330771291,0.13549186,81758.0,81757.0,0.1504455]
[1731330771667,0.09149186,81758.0,81757.0,0.1504455]
[1731330772029,0.1821621,81758.0,81757.0,0.1504455]
[1731330772232,0.09149186,81758.0,81757.0,0.1504455]
[1731330772584,0.16403329,81758.0,81757.0,0.1504455]
[1731330772882,0.16403329,81758.0,81757.0,0.29938771]
[1731330773018,0.05442479,81759.0,81758.0,0.245312]
[1731330773214,0.05442479,81759.0,81758.0,0.37125421]
[1731330773498,0.05442479,81760.0,81759.0,0.24531]
[1731330773779,0.05441814,81763.0,81762.0,0.317994]
[1731330773987,0.07254143,81766.0,81765.0,0.145301]
[1731330774183,0.07254143,81767.0,81766.0,0.1453]
[1731330774385,0.18356146,81780.0,81769.0,0.122295]
[1731330774386,0.09067024,81770.0,81769.0,0.122295]
[1731330774618,0.09067024,81772.0,81768.0,0.158984]
[1731330774820,0.09066149,81771.0,81766.0,0.18199]
[1731330775026,0.07252916,81767.0,81757.0,0.00335792]
[1731330775238,0.05439803,81761.0,81760.0,0.30587046]
[1731330775444,0.122293,81771.0,81760.0,0.30587046]
[1731330775445,0.07253071,81763.0,81762.0,0.122306]
[1731330775670,0.07250878,81764.0,81758.0,0.16984079]
[1731330775886,0.05437809,81760.0,81758.0,0.13314779]
[1731330776097,0.05437809,81760.0,81759.0,0.159002]
[1731330776098,0.05436869,81760.0,81759.0,0.159002]
[1731330776302,0.07250878,81763.0,81762.0,0.122306]
[1731330776761,0.05436422,81763.0,81762.0,0.12568132]
[1731330776982,0.07250878,81766.0,81765.0,0.122301]
[1731330777632,0.03624923,81770.0,81767.0,0.158988]
[1731330777883,0.03624923,81772.0,81771.0,0.122292]
[1731330778090,0.05436835,81775.0,81768.0,0.13379709]
[1731330778305,0.03624552,81771.0,81770.0,0.158982]
[1731330778506,0.05436835,81774.0,81771.0,0.15898]
[1731330778681,0.03624542,81774.0,81773.0,0.122289]
[1731330779168,0.03624542,81774.0,81773.0,0.12566009]
[1731330779597,0.03624542,81777.0,81773.0,0.12566009]
[1731330779767,0.03624542,81778.0,81777.0,0.122283]
[1731330779991,0.03518666,81781.0,81780.0,0.122279]
[1731330780417,0.03518666,81781.0,81780.0,0.22565009]
[1731330780621,0.03518666,81781.0,81780.0,0.23309529]
[1731330780771,0.03518666,81781.0,81780.0,0.41245105]
[1731330780986,0.03518666,81781.0,81780.0,0.41000585]
[1731330781363,0.03622778,81796.0,81795.0,0.122256]
[1731330781566,0.22048224,81799.0,81797.0,0.122253]
[1731330781767,0.000693,81799.0,81798.0,0.122252]
[1731330781972,0.000693,81799.0,81798.0,0.12559457]
[1731330782582,0.000693,81799.0,81798.0,0.23059457]
[1731330782999,0.000693,81799.0,81798.0,0.38198135]
[1731330783219,0.000693,81799.0,81798.0,0.37953678]
[1731330783418,0.000693,81799.0,81798.0,0.42717504]
[1731330783627,0.000693,81799.0,81798.0,0.43052115]
[1731330784030,0.000693,81799.0,81798.0,0.22894068]
[1731330784280,0.000693,81799.0,81798.0,0.00668868]
[1731330784478,0.122943,81799.0,81798.0,0.00334257]
[1731330784837,0.122943,81799.0,81790.0,0.18356146]
[1731330784838,0.245196,81799.0,81790.0,0.18356146]
[1731330785042,0.122258,81795.0,81791.0,0.00326883]
[1731330785258,0.122258,81795.0,81785.0,0.005]
[1731330785259,0.122272,81785.0,81778.0,0.122281]
[1731330785462,0.08213355,81796.0,81769.0,0.00325337]
[1731330785463,0.29113355,81793.0,81769.0,0.00325337]
[1731330785673,0.29113355,81793.0,81770.0,0.15898]
[1731330785674,0.122281,81779.0,81770.0,0.15898]
[1731330785883,0.244537,81787.0,81776.0,0.18356146]
[1731330786107,0.244537,81787.0,81777.0,0.122282]
[1731330786108,0.122274,81784.0,81777.0,0.122282]
[1731330786325,0.03613355,81788.0,81768.0,0.158984]
[1731330786526,0.03613355,81788.0,81780.0,0.122278]
[1731330786527,1.53613355,81787.0,81780.0,0.122278]
[1731330786735,0.03613355,81786.0,81780.0,0.122278]
[1731330786938,0.03613355,81789.0,81774.0,0.18356146]
[1731330787149,0.03613355,81789.0,81784.0,0.122272]
[1731330787360,0.03613355,81789.0,81781.0,0.158959]
[1731330787361,0.03613355,81791.0,81781.0,0.158959]
[1731330787671,0.03613355,81793.0,81783.0,0.158957]
[1731330787865,0.03613355,81793.0,81782.0,0.0158959]
[1731330787866,0.03613355,81794.0,81784.0,0.158955]
[1731330788081,0.03613355,81794.0,81777.0,0.122282]
[1731330788289,0.046,81796.0,81774.0,0.18356146]
[1731330788290,0.122286,81775.0,81774.0,0.18356146]
[1731330788472,0.007,81783.0,81763.0,0.18356146]
[1731330788685,0.122289,81773.0,81772.0,0.18356146]
[1731330788886,0.122289,81773.0,81763.0,0.18356146]
[1731330788887,0.122293,81771.0,81763.0,0.18356146]
[1731330789132,0.122281,81779.0,81770.0,0.158981]
[1731330789347,0.26284253,81782.0,81770.0,0.158981]
[1731330789348,0.122284,81777.0,81772.0,0.12229]
[1731330789581,0.122285,81776.0,81770.0,0.158981]
[1731330789974,0.122284,81777.0,81770.0,0.1699899]
[1731330790294,0.122284,81777.0,81771.0,0.00328088]
[1731330790501,0.122284,81777.0,81771.0,0.12557188]
[1731330790707,0.244564,81778.0,81771.0,0.00328088]
[1731330790915,0.122285,81776.0,81771.0,0.00328088]
[1731330791091,0.122286,81776.0,81771.0,0.00328088]
[1731330791536,0.122283,81778.0,81771.0,0.12557288]
[1731330791681,0.122285,81776.0,81771.0,0.12557288]
[1731330791890,0.122285,81776.0,81771.0,0.00328088]
[1731330792090,0.122291,81772.0,81771.0,0.00328088]
[1731330792301,0.122291,81772.0,81766.0,0.1223]
[1731330792501,0.122291,81772.0,81766.0,0.122299]
[1731330792720,0.12594221,81780.0,81768.0,0.122296]
[1731330792721,0.122288,81775.0,81768.0,0.122296]
[1731330792861,0.244567,81777.0,81767.0,0.12564072]
[1731330793082,0.16205983,81780.0,81769.0,0.00334298]
[1731330793290,0.122295,81769.0,81768.0,0.00334377]
[1731330793490,0.12229,81773.0,81767.0,0.122297]
[1731330793691,0.24457,81776.0,81768.0,0.00334166]
[1731330794007,0.122291,81772.0,81767.0,0.122297]
[1731330794230,0.122291,81772.0,81768.0,0.00334245]
[1731330794404,1.5,81771.0,81766.0,0.122298]
[1731330794610,1.5,81771.0,81767.0,0.12563945]
[1731330794834,1.5,81771.0,81767.0,0.00334245]
[1731330795286,0.122296,81769.0,81763.0,0.30586546]
[1731330795498,1.5,81771.0,81765.0,0.122301]
[1731330795499,1.622293,81771.0,81765.0,0.122301]
[1731330795912,1.5,81771.0,81759.0,0.159003]
[1731330796113,1.622292,81771.0,81764.0,0.122301]
[1731330796581,1.622292,81771.0,81760.0,0.03467406]
[1731330796801,0.000693,81799.0,81783.0,0.127274]
[1731330797036,0.000693,81799.0,81783.0,0.245274]
[1731330797258,0.000693,81799.0,81783.0,0.1256117]
[1731330797259,0.005,81797.0,81783.0,0.1256117]
[1731330797467,0.000693,81799.0,81783.0,0.0033377]
[1731330797674,0.000693,81799.0,81783.0,0.00578308]
[1731330797898,0.000693,81799.0,81793.0,0.122259]
[1731330798394,0.000693,81799.0,81794.0,0.00332606]
[1731330798606,0.000693,81799.0,81788.0,0.122266]
[1731330798816,0.000693,81799.0,81791.0,0.122262]
[1731330799020,0.000693,81799.0,81788.0,0.122266]
[1731330799236,0.000693,81799.0,81790.0,0.122264]
[1731330799888,0.000693,81799.0,81791.0,0.1344884]
[1731330800092,0.000693,81799.0,81793.0,0.122259]
[1731330800711,0.000693,81799.0,81792.0,0.122261]
[1731330801363,0.000693,81799.0,81791.0,0.0122264]
[1731330801569,0.000693,81799.0,81796.0,0.122254]
[1731330801774,0.000693,81799.0,81792.0,0.01711694]
[1731330802193,0.000693,81799.0,81794.0,0.281191]
[1731330802415,0.000693,81799.0,81793.0,0.122259]
[1731330803070,0.000693,81799.0,81792.0,0.01711694]
[1731330803287,0.12594221,81798.0,81785.0,0.18356146]
[1731330803498,0.12594221,81798.0,81790.0,0.122263]
[1731330803718,1.5,81797.0,81786.0,0.158951]
[1731330803923,1.62594221,81797.0,81791.0,0.122262]
[1731330804354,1.62594221,81797.0,81792.0,0.122261]
[1731330804814,1.62594221,81797.0,81787.0,0.20420025]
[1731330805455,1.62594221,81797.0,81791.0,0.122262]
[1731330805696,1.62594221,81797.0,81788.0,0.158947]
[1731330805697,1.5,81797.0,81796.0,0.122255]
[1731330805914,0.000693,81799.0,81798.0,0.122252]
[1731330806124,0.000693,81799.0,81798.0,0.37363889]
[1731330806342,0.000693,81799.0,81798.0,0.37619421]
[1731330809350,0.000693,81799.0,81798.0,0.222252]
[1731330809555,0.000693,81799.0,81798.0,0.122252]
[1731330810014,1.500693,81799.0,81782.0,0.005]
[1731330810192,0.000693,81799.0,81798.0,0.122252]
[1731330810712,1.500693,81799.0,81798.0,0.122252]
[1731330811175,0.005,81797.0,81788.0,0.122266]
[1731330811397,0.24819721,81796.0,81788.0,0.122266]
[1731330811605,1.500693,81799.0,81789.0,0.03222243]
[1731330811810,1.500693,81799.0,81796.0,0.122254]
[1731330812022,1.500693,81799.0,81790.0,0.158943]
[1731330812239,1.500693,81799.0,81794.0,0.122258]
[1731330812672,0.13094221,81798.0,81788.0,0.122266]
[1731330812913,0.122256,81795.0,81787.0,0.122268]
[1731330813152,0.24451,81796.0,81786.0,0.18356146]
[1731330813360,0.12594221,81796.0,81786.0,0.18356146]
[1731330813600,0.12226,81793.0,81787.0,0.122267]
[1731330813827,0.12594221,81796.0,81786.0,0.18356146]
[1731330814035,0.122258,81794.0,81788.0,0.122266]
[1731330814250,0.12594221,81796.0,81787.0,0.158949]
[1731330814478,0.37045521,81796.0,81789.0,0.122265]
[1731330814683,0.122259,81794.0,81789.0,0.122265]
[1731330814900,0.37045521,81796.0,81787.0,0.158949]
[1731330815117,0.005,81790.0,81778.0,0.158966]
[1731330815342,0.005,81790.0,81785.0,0.18356146]
[1731330815343,0.12227,81786.0,81785.0,0.18356146]
[1731330815559,0.122274,81784.0,81778.0,0.122282]
[1731330815779,0.122273,81784.0,81780.0,0.122279]
[1731330816013,0.12594221,81786.0,81776.0,0.18682465]
[1731330816224,0.24821321,81786.0,81781.0,0.122276]
[1731330816437,0.12594221,81786.0,81778.0,0.158966]
[1731330816657,0.005,81788.0,81784.0,0.000843]
[1731330816882,0.24821021,81787.0,81784.0,0.000843]
[1731330817385,0.18150219,81785.0,81784.0,0.000843]
[1731330817631,0.18150219,81785.0,81763.0,0.18356146]
[1731330817632,0.005,81776.0,81763.0,0.18356146]
[1731330817836,0.005,81780.0,81771.0,0.122291]
[1731330818053,1.5,81775.0,81766.0,0.00323937]
[1731330818271,0.122289,81773.0,81772.0,0.00323884]
[1731330818490,1.744574,81775.0,81767.0,0.122297]
[1731330818491,1.622286,81775.0,81767.0,0.122297]
[1731330818704,0.122289,81774.0,81766.0,0.122299]
[1731330818910,1.5,81775.0,81772.0,0.00323699]
[1731330819135,0.122288,81774.0,81767.0,0.122297]
[1731330819363,1.5,81775.0,81772.0,0.0125534]
[1731330819566,1.5,81775.0,81770.0,0.122292]
[1731330819776,0.122288,81774.0,81773.0,0.00328276]
[1731330819980,0.122288,81774.0,81763.0,0.00338695]
[1731330819981,1.5,81775.0,81763.0,0.00338695]
[1731330820190,0.122296,81769.0,81766.0,0.18356146]
[1731330820401,0.244579,81773.0,81765.0,0.02016619]
[1731330820402,0.122297,81768.0,81765.0,0.02016619]
[1731330820530,0.122298,81768.0,81765.0,0.02016619]
[1731330820733,0.122297,81768.0,81766.0,0.00328276]
[1731330820959,0.122295,81769.0,81765.0,0.000843]
[1731330821164,0.244582,81772.0,81765.0,0.000843]
[1731330821165,0.122298,81768.0,81765.0,0.000843]
[1731330821360,0.122295,81770.0,81766.0,0.00328569]
[1731330821563,0.122295,81770.0,81765.0,0.000843]
[1731330821766,0.122295,81770.0,81765.0,0.123144]
[1731330821968,0.122293,81771.0,81766.0,0.00328596]
[1731330822168,0.244579,81773.0,81766.0,0.00328596]
[1731330822341,1.5,81775.0,81765.0,0.05075284]
[1731330822676,1.62594221,81775.0,81766.0,0.15899]
[1731330822889,1.62594221,81775.0,81774.0,0.122288]
[1731330822890,1.5,81775.0,81774.0,0.122288]
[1731330823048,0.005,81787.0,81774.0,0.122288]
[1731330823049,0.03615353,81789.0,81774.0,0.0122288]
[1731330823249,0.18356146,81784.0,81777.0,0.122283]
[1731330823476,0.122274,81783.0,81773.0,0.122288]
[1731330823678,0.12228,81779.0,81771.0,0.28127]
[1731330823887,0.122278,81781.0,81775.0,0.281258]
[1731330824084,1.5,81785.0,81772.0,0.00328956]
[1731330824263,0.122289,81774.0,81772.0,0.00328956]
[1731330824464,0.37048821,81784.0,81773.0,0.00328798]
[1731330824465,0.005,81781.0,81773.0,0.00328798]
[1731330824667,0.122288,81774.0,81773.0,0.00328798]
[1731330824891,0.1223,81766.0,81765.0,0.000843]
[1731330825098,0.25324221,81766.0,81765.0,0.000843]
[1731330825656,1.75324221,81766.0,81765.0,0.000843]
[1731330826506,1.63094221,81766.0,81765.0,0.000843]
[1731330827795,1.63294221,81766.0,81765.0,0.000843]
[1731330827998,1.75524221,81766.0,81765.0,0.000843]
[1731330828375,2.08054221,81766.0,81765.0,0.000843]
[1731330828574,3.08054221,81766.0,81765.0,0.000843]
[1731330828777,3.08154221,81766.0,81765.0,0.000843]
[1731330829054,3.07954221,81766.0,81765.0,0.000843]
[1731330829542,2.5763,81766.0,81765.0,0.000843]
[1731330829992,2.82954221,81766.0,81765.0,0.000843]
[1731330830800,2.83154221,81766.0,81765.0,0.000843]
[1731330831003,3.08154221,81766.0,81765.0,0.000843]
[1731330832250,2.82954221,81766.0,81765.0,0.000843]
[1731330832750,1.001,81766.0,81765.0,0.123144]
[1731330834354,1.001,81766.0,81765.0,0.000843]
[1731330834552,1.25424221,81766.0,81765.0,0.000843]
[1731330834924,2.75424221,81766.0,81765.0,0.000843]
[1731330835130,2.75624221,81766.0,81765.0,0.000843]
[1731330835323,0.374307,81761.0,81757.0,0.000843]
[1731330835525,0.50024921,81761.0,81757.0,0.000843]
[1731330836131,2.00024921,81761.0,81757.0,0.000843]
[1731330837207,1.99824921,81761.0,81757.0,0.000843]
[1731330837857,2.00024921,81761.0,81757.0,0.000843]
[1731330838070,2.00324921,81761.0,81757.0,0.000843]
[1731330838335,2.00524921,81761.0,81757.0,0.000843]
[1731330838538,2.00324921,81761.0,81757.0,0.000843]
[1731330839255,2.00524921,81761.0,81757.0,0.000843]
[1731330840697,2.00324921,81761.0,81757.0,0.000843]
[1731330840905,2.00324921,81761.0,81760.0,0.030843]
[1731330841651,2.01024921,81761.0,81760.0,0.030843]
[1731330841831,2.01024921,81761.0,81713.0,0.005]
[1731330841832,0.002,81739.0,81735.0,0.18356146]
[1731330842037,0.122345,81736.0,81735.0,0.18356146]
[1731330842253,0.57988721,81736.0,81735.0,0.18356146]
[1731330842470,0.122353,81731.0,81725.0,0.122361]
[1731330842684,1.5,81730.0,81725.0,0.122361]
[1731330842912,1.5,81730.0,81726.0,0.30592046]
[1731330843135,1.5,81730.0,81726.0,0.122359]
[1731330843346,1.5,81730.0,81707.0,0.18356146]
[1731330843347,0.127357,81728.0,81707.0,0.18356146]
[1731330843616,0.127357,81728.0,81721.0,0.18356146]
[1731330843617,0.25329921,81728.0,81721.0,0.18356146]
[1731330844033,0.25329921,81728.0,81719.0,0.122369]
[1731330844242,0.25329921,81728.0,81720.0,0.18356146]
[1731330844852,0.25329921,81728.0,81720.0,0.30593046]
[1731330845107,0.25329921,81728.0,81720.0,0.18356146]
[1731330845341,0.25329921,81728.0,81645.0,0.01]
[1731330845342,0.25529921,81728.0,81703.0,0.171351]
[1731330845583,0.122385,81709.0,81708.0,0.18356146]
[1731330845832,0.382385,81709.0,81708.0,0.18356146]
[1731330846034,0.005,81704.0,81698.0,0.06725053]
[1731330846284,0.02254387,81703.0,81698.0,0.06725053]
[1731330846530,0.02254387,81702.0,81698.0,0.06725053]
[1731330846744,0.02254387,81702.0,81689.0,0.1716114]
[1731330846745,0.0815,81701.0,81689.0,0.0002304]
[1731330846979,0.0815,81701.0,81670.0,0.18356146]
[1731330846980,0.122415,81690.0,81681.0,0.18356146]
[1731330847194,0.122417,81688.0,81681.0,0.18356146]
[1731330847432,1.5,81689.0,81681.0,0.18356146]
[1731330847649,0.0225147,81692.0,81676.0,0.122434]
[1731330847650,0.12742,81686.0,81676.0,0.122434]
[1731330847863,0.12594221,81685.0,81672.0,0.0002]
[1731330848114,1.5,81684.0,81675.0,0.372435]
[1731330848334,0.24836621,81683.0,81675.0,0.25]
[1731330848543,0.12594221,81683.0,81675.0,0.25]
[1731330848757,0.24836621,81683.0,81675.0,0.25]
[1731330849033,1.5,81684.0,81675.0,0.25]